[Event "*** Titled Tuesday Blitz"]
[Site "Chess.com"]
[Date "2021.02.16"]
[Round "2"]
[White "WPWPWP-2015"]
[Black "1977Ivan"]
[Result "0-1"]
[WhiteElo "2487"]
[BlackElo "2737"]
[TimeControl "180+1"]
[EndTime "10:20:30 PST"]
[Termination "1977Ivan won on time"]

1. e4 {[%clk 0:02:59.4]} 1... c5 {[%clk 0:02:59.6]} 2. Nf3 {[%clk 0:02:55.1]}
2... e6 {[%clk 0:02:59.6]} 3. b3 {[%clk 0:02:52.6]} 3... Nc6 {[%clk 0:02:57.1]}
4. Bb2 {[%clk 0:02:51.4]} 4... d5 {[%clk 0:02:55.4]} 5. exd5 {[%clk 0:02:50.6]}
5... exd5 {[%clk 0:02:55.7]} 6. d4 {[%clk 0:02:50.4]} 6... Nf6 {[%clk
0:02:54.7]} 7. h3 {[%clk 0:02:43.5]} 7... Bd6 {[%clk 0:02:41]} 8. dxc5 {[%clk
0:02:37.3]} 8... Bxc5 {[%clk 0:02:39.5]} 9. Bd3 {[%clk 0:02:36.7]} 9... O-O
{[%clk 0:02:38.9]} 10. O-O {[%clk 0:02:35.9]} 10... Ne4 {[%clk 0:02:34.9]} 11.
Nbd2 {[%clk 0:02:29.3]} 11... Bf5 {[%clk 0:02:33.9]} 12. a3 {[%clk 0:02:21.9]}
12... Re8 {[%clk 0:02:31.3]} 13. b4 {[%clk 0:02:15.2]} 13... Bb6 {[%clk
0:02:31.3]} 14. b5 {[%clk 0:02:09.9]} 14... Na5 {[%clk 0:02:23.5]} 15. Nd4
{[%clk 0:02:07.7]} 15... Bg6 {[%clk 0:02:22.5]} 16. a4 {[%clk 0:01:17.2]} 16...
Qf6 {[%clk 0:02:09.5]} 17. N2f3 {[%clk 0:01:11.4]} 17... Nc4 {[%clk 0:02:07.5]}
18. Bxc4 {[%clk 0:01:11.1]} 18... dxc4 {[%clk 0:02:08.4]} 19. a5 {[%clk
0:01:10.2]} 19... Bc5 {[%clk 0:02:04.5]} 20. c3 {[%clk 0:01:03.8]} 20... h6
{[%clk 0:01:45.7]} 21. Qc1 {[%clk 0:00:59.5]} 21... Ng5 {[%clk 0:01:26.7]} 22.
Nxg5 {[%clk 0:00:54.6]} 22... hxg5 {[%clk 0:01:25.3]} 23. Ba3 {[%clk 0:00:49.2]}
23... Bxd4 {[%clk 0:01:23.2]} 24. cxd4 {[%clk 0:00:50.1]} 24... Bd3 {[%clk
0:01:18.2]} 25. Re1 {[%clk 0:00:27.1]} 25... Rxe1+ {[%clk 0:01:11]} 26. Qxe1
{[%clk 0:00:28]} 26... Qxd4 {[%clk 0:01:11.2]} 27. Bb4 {[%clk 0:00:25.7]} 27...
Qd7 {[%clk 0:00:59]} 28. Qe3 {[%clk 0:00:21.9]} 28... Qxb5 {[%clk 0:00:51]} 29.
Bc3 {[%clk 0:00:22.1]} 29... Re8 {[%clk 0:00:43.7]} 30. Qd4 {[%clk 0:00:22.1]}
30... f6 {[%clk 0:00:43.3]} 31. Re1 {[%clk 0:00:21.7]} 31... Rxe1+ {[%clk
0:00:40.2]} 32. Bxe1 {[%clk 0:00:22.6]} 32... Qb1 {[%clk 0:00:39.7]} 33. Qc3
{[%clk 0:00:22.1]} 33... Qd1 {[%clk 0:00:38.5]} 34. f3 {[%clk 0:00:22.1]} 34...
Qe2 {[%clk 0:00:33.6]} 35. Qd2 {[%clk 0:00:21.5]} 35... Qxd2 {[%clk 0:00:24.3]}
36. Bxd2 {[%clk 0:00:22.4]} 36... b6 {[%clk 0:00:20.5]} 37. axb6 {[%clk
0:00:21.6]} 37... axb6 {[%clk 0:00:19.9]} 38. Kf2 {[%clk 0:00:21.8]} 38... Kf7
{[%clk 0:00:20.1]} 39. g3 {[%clk 0:00:21.5]} 39... Ke6 {[%clk 0:00:20.3]} 40.
Ke3 {[%clk 0:00:21.7]} 40... Kd5 {[%clk 0:00:20.4]} 41. Bb4 {[%clk 0:00:22]}
41... Kc6 {[%clk 0:00:20.1]} 42. Kd4 {[%clk 0:00:21.7]} 42... Kb5 {[%clk
0:00:20]} 43. Kc3 {[%clk 0:00:21.9]} 43... Ka4 {[%clk 0:00:18.7]} 44. f4 {[%clk
0:00:21.8]} 44... gxf4 {[%clk 0:00:18.2]} 45. gxf4 {[%clk 0:00:21.9]} 45... Kb5
{[%clk 0:00:17.8]} 46. Bf8 {[%clk 0:00:21.2]} 46... g6 {[%clk 0:00:18]} 47. Be7
{[%clk 0:00:21.2]} 47... f5 {[%clk 0:00:18.2]} 48. h4 {[%clk 0:00:21.4]} 48...
Kc6 {[%clk 0:00:18.3]} 49. Bf8 {[%clk 0:00:21]} 49... Kd5 {[%clk 0:00:18.1]} 50.
Be7 {[%clk 0:00:20.4]} 50... Bf1 {[%clk 0:00:17.1]} 51. Bd8 {[%clk 0:00:19.9]}
51... b5 {[%clk 0:00:15.5]} 52. Be7 {[%clk 0:00:19.9]} 52... Ke4 {[%clk
0:00:15.4]} 53. Bd6 {[%clk 0:00:19.2]} 53... Kf3 {[%clk 0:00:15.5]} 54. Kd4
{[%clk 0:00:18.1]} 54... Kg4 {[%clk 0:00:15]} 55. Kc3 {[%clk 0:00:17.3]} 55...
Kxh4 {[%clk 0:00:14.9]} 56. Be7+ {[%clk 0:00:17.6]} 56... Kg4 {[%clk 0:00:14.3]}
57. Bg5 {[%clk 0:00:17.5]} 57... Kf3 {[%clk 0:00:14.4]} 58. Bh6 {[%clk
0:00:17.4]} 58... Ke3 {[%clk 0:00:13.9]} 59. Bg5 {[%clk 0:00:17.4]} 59... b4+
{[%clk 0:00:09.6]} 60. Kxb4 {[%clk 0:00:17.5]} 60... Kd3 {[%clk 0:00:09.9]} 61.
Bf6 {[%clk 0:00:17.1]} 61... Bg2 {[%clk 0:00:10]} 62. Bg7 {[%clk 0:00:16]} 62...
Be4 {[%clk 0:00:10]} 63. Bf6 {[%clk 0:00:16]} 63... g5 {[%clk 0:00:09]} 64. fxg5
{[%clk 0:00:08.7]} 64... f4 {[%clk 0:00:09.9]} 65. Bc3 {[%clk 0:00:04.9]} 65...
f3 {[%clk 0:00:09.4]} 66. Be1 {[%clk 0:00:04.8]} 66... Bg6 {[%clk 0:00:08]} 67.
Bg3 {[%clk 0:00:01.2]} 67... Bf7 {[%clk 0:00:08]} 0-1

[Event "*** Titled Tuesday Blitz"]
[Site "Chess.com"]
[Date "2021.02.16"]
[Round "2"]
[White "NikolaN98"]
[Black "kayrakamer"]
[Result "0-1"]
[WhiteElo "2470"]
[BlackElo "2710"]
[TimeControl "180+1"]
[EndTime "10:20:32 PST"]
[Termination "kayrakamer won on time"]

1. f4 {[%clk 0:03:00.9]} 1... g6 {[%clk 0:02:54.5]} 2. Nf3 {[%clk 0:02:57.3]}
2... Bg7 {[%clk 0:02:55]} 3. d3 {[%clk 0:02:46.8]} 3... d6 {[%clk 0:02:54.5]} 4.
e4 {[%clk 0:02:46]} 4... c5 {[%clk 0:02:44.8]} 5. Nc3 {[%clk 0:02:28.1]} 5...
Nc6 {[%clk 0:02:44.3]} 6. Be2 {[%clk 0:02:27.4]} 6... Rb8 {[%clk 0:02:42.1]} 7.
O-O {[%clk 0:02:27.1]} 7... b5 {[%clk 0:02:39.1]} 8. a4 {[%clk 0:02:25.8]} 8...
b4 {[%clk 0:02:39.3]} 9. Nd5 {[%clk 0:02:25.9]} 9... e6 {[%clk 0:02:35.8]} 10.
Ne3 {[%clk 0:02:25.9]} 10... Nge7 {[%clk 0:02:35.4]} 11. Kh1 {[%clk 0:02:25.6]}
11... O-O {[%clk 0:02:26.4]} 12. Qe1 {[%clk 0:02:24.6]} 12... f5 {[%clk
0:02:26.3]} 13. Qh4 {[%clk 0:02:05.9]} 13... Nd4 {[%clk 0:02:24.5]} 14. Bd1
{[%clk 0:01:59.3]} 14... Nec6 {[%clk 0:02:16.4]} 15. Qg3 {[%clk 0:01:50.2]}
15... Nxf3 {[%clk 0:02:10.8]} 16. Bxf3 {[%clk 0:01:43.7]} 16... Nd4 {[%clk
0:02:10.2]} 17. exf5 {[%clk 0:01:37.4]} 17... gxf5 {[%clk 0:02:06.6]} 18. Bd1
{[%clk 0:01:15.7]} 18... Bd7 {[%clk 0:01:54.3]} 19. Bd2 {[%clk 0:01:15.7]} 19...
Kh8 {[%clk 0:01:43.4]} 20. Qh3 {[%clk 0:01:15.7]} 20... Bc6 {[%clk 0:01:40]} 21.
Be1 {[%clk 0:01:15.8]} 21... Bf6 {[%clk 0:01:36.8]} 22. Ra2 {[%clk 0:01:06.1]}
22... b3 {[%clk 0:01:26.3]} 23. cxb3 {[%clk 0:01:02.9]} 23... Nxb3 {[%clk
0:01:27.2]} 24. Bc3 {[%clk 0:00:57.3]} 24... Nd4 {[%clk 0:01:24.6]} 25. a5
{[%clk 0:00:54.5]} 25... Rg8 {[%clk 0:01:23.6]} 26. Ba4 {[%clk 0:00:50.8]} 26...
Ba8 {[%clk 0:01:16.4]} 27. Rf2 {[%clk 0:00:51.2]} 27... Qe7 {[%clk 0:01:12.9]}
28. Ra1 {[%clk 0:00:50.7]} 28... Qg7 {[%clk 0:01:09.6]} 29. Re1 {[%clk
0:00:47.2]} 29... Qf8 {[%clk 0:00:52.7]} 30. Kg1 {[%clk 0:00:46.3]} 30... Rg6
{[%clk 0:00:51.2]} 31. Kf1 {[%clk 0:00:45.9]} 31... Rh6 {[%clk 0:00:48.3]} 32.
Qg3 {[%clk 0:00:45.1]} 32... Qf7 {[%clk 0:00:47.5]} 33. h3 {[%clk 0:00:38.2]}
33... Bh4 {[%clk 0:00:46.6]} 34. Qh2 {[%clk 0:00:38.3]} 34... Bxf2 {[%clk
0:00:46.3]} 35. Kxf2 {[%clk 0:00:39.2]} 35... Rg8 {[%clk 0:00:44.7]} 36. Rg1
{[%clk 0:00:35.9]} 36... Qb7 {[%clk 0:00:33.7]} 37. Bd1 {[%clk 0:00:31.6]} 37...
Qg7 {[%clk 0:00:22.9]} 38. Nc4 {[%clk 0:00:24.5]} 38... Rd8 {[%clk 0:00:18.3]}
39. Ne3 {[%clk 0:00:20.2]} 39... Kg8 {[%clk 0:00:17.9]} 40. g4 {[%clk
0:00:16.3]} 40... fxg4 {[%clk 0:00:14]} 41. Bxg4 {[%clk 0:00:14.7]} 41... Rg6
{[%clk 0:00:12.3]} 42. Bxe6+ {[%clk 0:00:13.6]} 42... Kh8 {[%clk 0:00:11.2]} 43.
Bg4 {[%clk 0:00:12.7]} 43... Rf8 {[%clk 0:00:08.7]} 44. f5 {[%clk 0:00:13.1]}
44... Rgf6 {[%clk 0:00:07.2]} 45. Qf4 {[%clk 0:00:12.6]} 45... Qb7 {[%clk
0:00:06.9]} 46. Ke1 {[%clk 0:00:11.1]} 46... Qe7 {[%clk 0:00:06.7]} 47. Kd2
{[%clk 0:00:10.7]} 47... Re8 {[%clk 0:00:07.1]} 48. Rg3 {[%clk 0:00:07.3]} 48...
Ref8 {[%clk 0:00:07.1]} 49. h4 {[%clk 0:00:07]} 49... Nb3+ {[%clk 0:00:07.2]}
50. Kc2 {[%clk 0:00:06.5]} 50... Nd4+ {[%clk 0:00:08.1]} 51. Kd2 {[%clk
0:00:06.8]} 51... Qb7 {[%clk 0:00:08]} 52. h5 {[%clk 0:00:06.2]} 52... Qh1
{[%clk 0:00:07.9]} 53. Rg2 {[%clk 0:00:04.3]} 53... Qb1 {[%clk 0:00:07.4]} 54.
Rg3 {[%clk 0:00:02.4]} 54... Nb3+ {[%clk 0:00:07.3]} 55. Ke2 {[%clk 0:00:02.5]}
55... Nc1+ {[%clk 0:00:07.2]} 56. Kf2 {[%clk 0:00:02.5]} 56... Nxd3+ {[%clk
0:00:07.5]} 57. Ke2 {[%clk 0:00:02]} 57... Nxf4+ {[%clk 0:00:08.1]} 58. Kd2
{[%clk 0:00:02.6]} 58... Qd3+ {[%clk 0:00:07.7]} 59. Kc1 {[%clk 0:00:02.4]}
59... Ne2+ {[%clk 0:00:08.1]} 60. Bxe2 {[%clk 0:00:01.3]} 60... Qxe2 {[%clk
0:00:09]} 61. h6 {[%clk 0:00:01.6]} 61... d5 {[%clk 0:00:06.7]} 62. Ng4 {[%clk
0:00:02.5]} 62... d4 {[%clk 0:00:06.7]} 63. Nxf6 {[%clk 0:00:03]} 63... Rxf6
{[%clk 0:00:07]} 64. Bd2 {[%clk 0:00:02.7]} 64... Qf1+ {[%clk 0:00:07.1]} 65.
Kc2 {[%clk 0:00:02.7]} 65... Qxf5+ {[%clk 0:00:07.4]} 66. Kc1 {[%clk 0:00:02.7]}
66... Rf8 {[%clk 0:00:07.6]} 0-1

[Event "*** Titled Tuesday Blitz"]
[Site "Chess.com"]
[Date "2021.02.16"]
[Round "2"]
[White "Euge_chess"]
[Black "c_r_e_e_p_e_r"]
[Result "0-1"]
[WhiteElo "2105"]
[BlackElo "2398"]
[TimeControl "180+1"]
[EndTime "10:20:39 PST"]
[Termination "c_r_e_e_p_e_r won on time"]

1. e4 {[%clk 0:03:00.9]} 1... c5 {[%clk 0:02:57.9]} 2. c3 {[%clk 0:03:00.7]}
2... d5 {[%clk 0:02:57.3]} 3. exd5 {[%clk 0:03:00.7]} 3... Qxd5 {[%clk 0:02:57]}
4. d4 {[%clk 0:03:01.2]} 4... Nf6 {[%clk 0:02:56.3]} 5. Nf3 {[%clk 0:03:01.1]}
5... Bg4 {[%clk 0:02:52.7]} 6. Be2 {[%clk 0:03:00.9]} 6... e6 {[%clk 0:02:51]}
7. O-O {[%clk 0:03:00.2]} 7... Nc6 {[%clk 0:02:46.9]} 8. Be3 {[%clk 0:02:59.6]}
8... cxd4 {[%clk 0:02:43.3]} 9. cxd4 {[%clk 0:02:57.9]} 9... Be7 {[%clk
0:02:43.1]} 10. Nc3 {[%clk 0:02:57.7]} 10... Qd6 {[%clk 0:02:42]} 11. Nb5 {[%clk
0:02:49.8]} 11... Qd8 {[%clk 0:02:39.6]} 12. Ne5 {[%clk 0:02:47.5]} 12... Bxe2
{[%clk 0:02:28]} 13. Qxe2 {[%clk 0:02:46.5]} 13... O-O {[%clk 0:02:26.1]} 14.
Rac1 {[%clk 0:02:38.3]} 14... Nb4 {[%clk 0:02:22.5]} 15. a3 {[%clk 0:02:31.9]}
15... Nbd5 {[%clk 0:02:22.6]} 16. Rfd1 {[%clk 0:02:29.7]} 16... a6 {[%clk
0:02:22.2]} 17. Nc3 {[%clk 0:02:29.3]} 17... Qd6 {[%clk 0:02:17.4]} 18. Nc4
{[%clk 0:02:20.4]} 18... Qd8 {[%clk 0:02:15.4]} 19. Bg5 {[%clk 0:02:14.1]} 19...
h6 {[%clk 0:02:13.5]} 20. Bh4 {[%clk 0:02:00.7]} 20... Rc8 {[%clk 0:02:00.2]}
21. Bxf6 {[%clk 0:01:48.3]} 21... Nxf6 {[%clk 0:01:46]} 22. Ne4 {[%clk
0:01:42.2]} 22... Nd5 {[%clk 0:01:38.1]} 23. Ne5 {[%clk 0:01:38.9]} 23... Bf6
{[%clk 0:00:59.4]} 24. Rxc8 {[%clk 0:01:30.2]} 24... Qxc8 {[%clk 0:00:59.6]} 25.
Nc5 {[%clk 0:01:13.7]} 25... Bxe5 {[%clk 0:00:52.5]} 26. Qxe5 {[%clk 0:01:12.9]}
26... b6 {[%clk 0:00:42.5]} 27. Nd3 {[%clk 0:01:03.7]} 27... Qc2 {[%clk
0:00:39.7]} 28. Qe1 {[%clk 0:01:01]} 28... Rd8 {[%clk 0:00:33.5]} 29. Rd2 {[%clk
0:00:58.5]} 29... Qb3 {[%clk 0:00:31.7]} 30. Ne5 {[%clk 0:00:53.4]} 30... Nf4
{[%clk 0:00:26.8]} 31. g3 {[%clk 0:00:48.6]} 31... Nd5 {[%clk 0:00:19.5]} 32.
Qe4 {[%clk 0:00:40.2]} 32... Rc8 {[%clk 0:00:17]} 33. Kg2 {[%clk 0:00:38.1]}
33... Rc1 {[%clk 0:00:15.5]} 34. Qf3 {[%clk 0:00:33.8]} 34... Qxf3+ {[%clk
0:00:13.7]} 35. Kxf3 {[%clk 0:00:31.9]} 35... Kf8 {[%clk 0:00:12.9]} 36. h4
{[%clk 0:00:31.6]} 36... Ke7 {[%clk 0:00:12.3]} 37. Nd3 {[%clk 0:00:21.4]} 37...
Rc4 {[%clk 0:00:09.9]} 38. Ne5 {[%clk 0:00:20.6]} 38... Rc7 {[%clk 0:00:09.7]}
39. g4 {[%clk 0:00:19.1]} 39... g6 {[%clk 0:00:07.2]} 40. Kg3 {[%clk 0:00:17]}
40... g5 {[%clk 0:00:06]} 41. h5 {[%clk 0:00:16.6]} 41... Nf4 {[%clk 0:00:05.6]}
42. Nd3 {[%clk 0:00:14.9]} 42... Nd5 {[%clk 0:00:04.2]} 43. Ne5 {[%clk
0:00:10.7]} 43... Kd6 {[%clk 0:00:04.6]} 44. Kg2 {[%clk 0:00:05.4]} 44... Nf4+
{[%clk 0:00:04.8]} 45. Kg3 {[%clk 0:00:05.3]} 45... f6 {[%clk 0:00:05.4]} 46.
Nd3 {[%clk 0:00:04.7]} 46... Nxd3 {[%clk 0:00:04.8]} 47. Rxd3 {[%clk 0:00:04.4]}
47... Rc2 {[%clk 0:00:04.6]} 48. b4 {[%clk 0:00:04.4]} 48... Kd5 {[%clk
0:00:04.6]} 49. f3 {[%clk 0:00:04.4]} 49... Kc4 {[%clk 0:00:04.1]} 50. Re3
{[%clk 0:00:04.3]} 50... Kxd4 {[%clk 0:00:03.8]} 51. Rxe6 {[%clk 0:00:03.8]}
51... Rc3 {[%clk 0:00:03.6]} 52. Rxf6 {[%clk 0:00:03.7]} 52... Rxa3 {[%clk
0:00:03.9]} 53. Rxb6 {[%clk 0:00:03.8]} 53... Kc4 {[%clk 0:00:03.9]} 54. Rxh6
{[%clk 0:00:03.6]} 54... Kxb4 {[%clk 0:00:04.2]} 55. Rg6 {[%clk 0:00:03.3]}
55... Ra5 {[%clk 0:00:04.2]} 56. h6 {[%clk 0:00:02.9]} 56... Ra1 {[%clk
0:00:04.2]} 57. h7 {[%clk 0:00:01.9]} 57... Rh1 {[%clk 0:00:04.4]} 58. Rxg5
{[%clk 0:00:02.8]} 58... Rxh7 {[%clk 0:00:04.4]} 59. Rg6 {[%clk 0:00:02.6]}
59... a5 {[%clk 0:00:04.6]} 60. g5 {[%clk 0:00:02.7]} 60... Ra7 {[%clk
0:00:03.9]} 61. Rb6+ {[%clk 0:00:03]} 61... Kc5 {[%clk 0:00:03.9]} 62. Rb1
{[%clk 0:00:02.6]} 62... a4 {[%clk 0:00:04.1]} 63. f4 {[%clk 0:00:02.8]} 63...
a3 {[%clk 0:00:03.9]} 64. Ra1 {[%clk 0:00:02.9]} 64... a2 {[%clk 0:00:04]} 65.
f5 {[%clk 0:00:02.9]} 65... Kd5 {[%clk 0:00:04.4]} 66. Kg4 {[%clk 0:00:02.5]}
66... Ke5 {[%clk 0:00:04.8]} 67. g6 {[%clk 0:00:02.8]} 67... Kf6 {[%clk
0:00:05.1]} 68. Kf4 {[%clk 0:00:01.6]} 68... Ra4+ {[%clk 0:00:05.4]} 69. Kg3
{[%clk 0:00:01.7]} 69... Kxf5 {[%clk 0:00:05.6]} 0-1

[Event "*** Titled Tuesday Blitz"]
[Site "Chess.com"]
[Date "2021.02.16"]
[Round "2"]
[White "Kaua18"]
[Black "DenisQ"]
[Result "0-1"]
[WhiteElo "2369"]
[BlackElo "2661"]
[TimeControl "180+1"]
[EndTime "10:20:41 PST"]
[Termination "DenisQ won on time"]

1. e4 {[%clk 0:02:59.6]} 1... c6 {[%clk 0:02:59.5]} 2. d4 {[%clk 0:02:59]} 2...
d5 {[%clk 0:03:00.2]} 3. Nc3 {[%clk 0:02:57]} 3... dxe4 {[%clk 0:02:59.9]} 4.
Nxe4 {[%clk 0:02:56.5]} 4... Bf5 {[%clk 0:02:59.9]} 5. Ng3 {[%clk 0:02:47.8]}
5... Bg6 {[%clk 0:02:57.7]} 6. Nf3 {[%clk 0:02:37]} 6... e6 {[%clk 0:02:57.1]}
7. h4 {[%clk 0:02:27.9]} 7... h6 {[%clk 0:02:56.5]} 8. h5 {[%clk 0:02:18.5]}
8... Bh7 {[%clk 0:02:56.1]} 9. Bd3 {[%clk 0:02:18.6]} 9... Bxd3 {[%clk
0:02:55.3]} 10. Qxd3 {[%clk 0:02:19.4]} 10... Nf6 {[%clk 0:02:55.4]} 11. Bd2
{[%clk 0:02:12]} 11... c5 {[%clk 0:02:49.1]} 12. O-O-O {[%clk 0:02:07]} 12...
Nc6 {[%clk 0:02:47.8]} 13. Bc3 {[%clk 0:02:02]} 13... Qd5 {[%clk 0:02:46.7]} 14.
Kb1 {[%clk 0:02:01.6]} 14... c4 {[%clk 0:02:46.3]} 15. Qe2 {[%clk 0:02:00.8]}
15... b5 {[%clk 0:02:45.6]} 16. Ne5 {[%clk 0:01:58]} 16... Be7 {[%clk 0:02:36]}
17. f3 {[%clk 0:01:46.1]} 17... O-O {[%clk 0:02:32.7]} 18. Rhe1 {[%clk
0:01:43.3]} 18... b4 {[%clk 0:02:29.3]} 19. Nxc6 {[%clk 0:01:43]} 19... Qxc6
{[%clk 0:02:28.4]} 20. Bd2 {[%clk 0:01:39.9]} 20... c3 {[%clk 0:02:28.6]} 21.
Bc1 {[%clk 0:01:37.6]} 21... cxb2 {[%clk 0:02:28.3]} 22. Bxb2 {[%clk 0:01:38.5]}
22... Rfd8 {[%clk 0:02:19.1]} 23. Ne4 {[%clk 0:01:35.3]} 23... Rac8 {[%clk
0:02:16.4]} 24. g4 {[%clk 0:01:32.9]} 24... Nd5 {[%clk 0:02:13.4]} 25. Rd3
{[%clk 0:01:27.7]} 25... Nf4 {[%clk 0:02:11.1]} 26. Qd2 {[%clk 0:01:27.4]} 26...
Nxd3 {[%clk 0:02:10.8]} 27. Qxd3 {[%clk 0:01:28.3]} 27... Qc4 {[%clk 0:02:00.5]}
28. Qe2 {[%clk 0:01:22.4]} 28... Qxe2 {[%clk 0:01:55.8]} 29. Rxe2 {[%clk
0:01:23.3]} 29... a5 {[%clk 0:01:53.5]} 30. f4 {[%clk 0:01:13.5]} 30... a4
{[%clk 0:01:52.8]} 31. g5 {[%clk 0:01:11.5]} 31... a3 {[%clk 0:01:52.6]} 32. Ba1
{[%clk 0:01:09.6]} 32... hxg5 {[%clk 0:01:38.6]} 33. fxg5 {[%clk 0:01:09.2]}
33... Rc4 {[%clk 0:01:36.6]} 34. g6 {[%clk 0:01:03.4]} 34... Rcxd4 {[%clk
0:01:25.1]} 35. Bxd4 {[%clk 0:01:01.9]} 35... Rxd4 {[%clk 0:01:25.8]} 36. c3
{[%clk 0:00:58.9]} 36... bxc3 {[%clk 0:01:23.4]} 37. Nxc3 {[%clk 0:00:59.8]}
37... Rh4 {[%clk 0:01:19.6]} 38. Re5 {[%clk 0:00:22.9]} 38... Kf8 {[%clk
0:01:13.4]} 39. Ra5 {[%clk 0:00:15.7]} 39... fxg6 {[%clk 0:01:12]} 40. hxg6
{[%clk 0:00:15.6]} 40... Bb4 {[%clk 0:01:06.3]} 41. Ra8+ {[%clk 0:00:15.5]}
41... Ke7 {[%clk 0:01:06.6]} 42. Nb5 {[%clk 0:00:11.2]} 42... Rh2 {[%clk
0:01:04.7]} 43. Nxa3 {[%clk 0:00:10.4]} 43... Rg2 {[%clk 0:00:58.1]} 44. Nc4
{[%clk 0:00:05.3]} 44... Rxg6 {[%clk 0:00:56.2]} 45. Ne5 {[%clk 0:00:05.6]}
45... Rg1+ {[%clk 0:00:54.4]} 46. Kc2 {[%clk 0:00:05.9]} 46... Kf6 {[%clk
0:00:51.5]} 47. Nc6 {[%clk 0:00:02.8]} 47... Bd6 {[%clk 0:00:48.7]} 48. Kd3
{[%clk 0:00:03.7]} 48... Rc1 {[%clk 0:00:46.4]} 49. Nd4 {[%clk 0:00:02.8]} 49...
g5 {[%clk 0:00:42.5]} 50. Ne2 {[%clk 0:00:03.7]} 50... Rd1+ {[%clk 0:00:41]} 51.
Ke3 {[%clk 0:00:04.2]} 51... Kf5 {[%clk 0:00:39]} 52. a4 {[%clk 0:00:03.1]}
52... Bc5+ {[%clk 0:00:37.1]} 53. Kf3 {[%clk 0:00:02.2]} 53... g4+ {[%clk
0:00:37.4]} 54. Kg3 {[%clk 0:00:01.9]} 54... Rd3+ {[%clk 0:00:37.2]} 55. Kg2
{[%clk 0:00:02]} 55... Rd2 {[%clk 0:00:37.5]} 56. Kf1 {[%clk 0:00:01.5]} 56...
Ke4 {[%clk 0:00:36.9]} 57. Rg8 {[%clk 0:00:01.5]} 57... Kf3 {[%clk 0:00:35.7]}
58. Ng1+ {[%clk 0:00:02]} 58... Bxg1 {[%clk 0:00:32.9]} 59. Kxg1 {[%clk
0:00:02.9]} 59... Ra2 {[%clk 0:00:32.6]} 60. a5 {[%clk 0:00:02.9]} 60... Rxa5
{[%clk 0:00:31.8]} 61. Rf8+ {[%clk 0:00:03.3]} 61... Kg3 {[%clk 0:00:31.3]} 62.
Rf1 {[%clk 0:00:02.6]} 62... Re5 {[%clk 0:00:29.3]} 63. Rc1 {[%clk 0:00:02.9]}
63... Re3 {[%clk 0:00:28]} 64. Kf1 {[%clk 0:00:03.1]} 64... e5 {[%clk
0:00:28.1]} 65. Ra1 {[%clk 0:00:03.5]} 65... e4 {[%clk 0:00:28.2]} 66. Ra2
{[%clk 0:00:04]} 66... Rd3 {[%clk 0:00:27.4]} 67. Ra1 {[%clk 0:00:04.5]} 67...
Rd2 {[%clk 0:00:26.8]} 68. Ra3+ {[%clk 0:00:04.1]} 68... Kf4 {[%clk 0:00:26.6]}
69. Rb3 {[%clk 0:00:04.4]} 69... g3 {[%clk 0:00:25.8]} 70. Rb8 {[%clk
0:00:02.1]} 70... Ke3 {[%clk 0:00:22.4]} 0-1